Workbook

Sheet Menu
A1: Ceci est une calculatrice d'aide aux décisions d'affaire à la ferme qui comporte 4 feuilles de travail. Certains champs doivent être remplis par l'utilisateur. Elle peut avoir 24 colonnes de largeur et 55 rangées.
A2: Menu - Calcul des tarifs des travaux agricoles à forfait
A16: Le tableur Excel Calcul des tarifs des travaux agricoles à forfait vous permet de calculer les coûts qu’il faut comptabiliser pour les travaux agricoles à forfait. Il comprend des tableaux permettant de comptabiliser les coûts relatifs au matériel qui sont requis dans le calcul ainsi qu’une fiche technique contenant les résultats de l’enquête sur les tarifs perçus en 2018 pour les travaux agricoles à forfait en Ontario et un guide de rédaction de contrat de travail agricole à forfait. Le tableur Excel Calcul des tarifs de location de matériel, que vous trouverez sous l’onglet « Calculatrice », vous permet de calculer les coûts qu’il faut comptabiliser pour la location d’équipement à court terme.
A18: Conçu par John Molenhuis
A19: chargé de programme, analyse des activités commerciales et des coûts de production
A20: MAAARO, Brighton
A21: Courriel: john.molenhuis@ontario.ca
A23: Révisé le avril 2020
A25: fin de la feuille de calcul

Sheet Calculatrice
B2: Calcul du tarif d'un travail à forfait
B3: UNITÉ MOTRICE (TRACTEUR OU MACHINE AUTOMOTRICE)
B4: Puissance (CV) à la prise de force | C4: 375 | D4: Moissonneuses-batteuses automotrices
B5: Vie utile (années) | C5: 5 | D5: Prix d'achat | E5: 478000 | Z5: =D4 -> Moissonneuses-batteuses automotrices | AA5: Tracteurs 2RM | AD5: 2WD tractors
B6: Taux d'intérêt*** | C6: 0.03 | D6: Heures par année | E6: 250 | AA6: Tracteurs avec assistance roues avant | AD6: FWA tractors
B7: Acres/an | C7: 2575 | D7: Coût du carburant/L | E7: 1 | AA7: Tracteurs 4RM | AD7: 4WD tractors
B8: Acres/hr (voir tableau 5) | C8: 10.3 | D8: Consommation moyenne de carburant (L/h) | E8: =C4*0.244 -> 91.5 | AA8: Moissonneuses-batteuses automotrices | AD8: Self Propelled combines
AA9: Pulvérisateurs enjambeurs automoteurs | AD9: Self propelled high clearance sprayer
B10: Taux d’amortissement annuel (% du prix d’achat) Tableau 3 | C10: =IF(D4<>"",VLOOKUP(D4,DeprRep,4,FALSE),0) -> 5.6 | D10: Pourcentage à allouer pour les réparations annuelles (% du prix d’achat) Tableau 3 | E10: =IF(D4<>"",VLOOKUP(D4,DeprRep,5,FALSE),0) -> 2.5 | AA10: Récolteuses-hacheuses automotrices | AD10: Self propelled forage harvesters
B11: Valeur de reprise** | C11: =IF(C10=0,0,E5-(E5*C10/100*C5)) -> 344160 | AA11: Depreciation
B12: Coûts fixes annuels | AA12: Trade in value
B13: Recouvrement des investissements* | AA13: Repairs | AB13: =VLOOKUP(D4,DeprRep,4) -> 4.4
B14: prix d’achat – valeur de reprise | D14: =E5-C11 -> 133840
B15: facteur lié au recouvrement des investissements | C15: x | D15: =(C6*(1+C6)^C5)/((1+C6)^C5-1) -> 0.2183545714 | AB15: =VLOOKUP(D4,#REF!,5) -> 3
D16: =D14*D15 -> 29224.57584
B17: valeur de reprise x taux d’intérêt** | C17: + | D17: =C11*C6 -> 10324.8
B18: Recouvrement des investissements* | E18: =D16+D17 -> 39549.37584
AA19: Têtes à grains
B20: Assurance et remisage | D20: prix d’achat x 1 % | E20: =E5*0.01 -> 4780 | AA20: Têtes à maïs
B21: Coûts fixes TOTAUX/an | E21: =SUM(E18:E20) -> 44329.37584 | F21: (A) | AA21: Remorques à grain
AA22: Charrues à disques
B23: Coûts d’utilisation annuels | AA23: Travail du sol vertical
B24: Carburant et lubrifiants (Tableau 5) | D24: (litres/heure x heures/an x coût du carburant/litre x 1,10) | E24: =E8*E6*E7*1.15 -> 26306.25 | AA24: Cultivateurs, bineuses
B25: Réparations | D25: pourcentage à allouer pour les réparations annuelles x prix d’achat | E25: =E5*E10/100 -> 11950 | AA25: Herses
B26: Coûts d’utilisation TOTAUX/an | E26: =SUM(E24:E25) -> 38256.25 | F26: (B) | AA26: Semoirs
B27: Totaux | E27: =SUM(E26,E21) -> 82585.62584 | AA27: Semoirs en lignes
B28: + MATÉRIEL 1 (INSTRUMENT ARATOIRE, MACHINE MUE PAR PRISE DE FORCE, AUTRE) | D28: Têtes à maïs | AA28: Faucheuse - conditionneuse
B29: Vie utile (années) | C29: 5 | D29: Prix d'achat | E29: 122000 | AA29: Presses à balles rondes
B30: Taux d'intérêt*** | C30: 0.03 | D30: Valeur de reprise** | E30: =C33 -> 95160 | AA30: Presses à grosses balles carrées
AA31: Presses à petites balles carrées
B32: Taux d’amortissement annuel (% du prix d’achat) Tableau 3 | C32: =IF(D28<>"",VLOOKUP(D28,DeprRep,4,FALSE),0) -> 4.4 | D32: Pourcentage à allouer pour les réparations annuelles (% du prix d’achat) Tableau 3 | E32: =IF(D28<>"",VLOOKUP(D28,DeprRep,5,FALSE),0) -> 2.8 | AA32: Épandeurs de fumier
B33: Valeur de reprise** | C33: =IF(C32="","",E29-(E29*C32/100*C29)) -> 95160
B34: + MATÉRIEL 2 (INSTRUMENT ARATOIRE, MACHINE MUE PAR PRISE DE FORCE, AUTRE) | D34: Têtes à grains
B35: Vie utile (années) | C35: 5 | D35: Prix d'achat | E35: 60000
B36: Taux d'intérêt*** | C36: 0.03 | D36: Valeur de reprise** | E36: =C39 -> 46800
B38: Taux d’amortissement annuel (% du prix d’achat) Tableau 3 | C38: =IF(D34<>"",VLOOKUP(D34,DeprRep,4,FALSE),0) -> 4.4 | D38: Pourcentage à allouer pour les réparations annuelles (% du prix d’achat) Tableau 3 | E38: =IF(D34<>"",VLOOKUP(D34,DeprRep,5,FALSE),0) -> 2.5
B39: Valeur de reprise** | C39: =IF(C38="","",E35-(E35*C38/100*C35)) -> 46800
B40: Coûts fixes annuels
B41: Recouvrement des investissements*
B42: prix d’achat – valeur de reprise | D42: =(E29-E30)+(E35-E36) -> 40040
B43: facteur lié au recouvrement des investissements | C43: x | D43: =(C30*(1+C30)^C29)/((1+C30)^C29-1) -> 0.2183545714
D44: =D42*D43 -> 8742.917039
B45: valeur de reprise x taux d’intérêt** | C45: + | D45: =(E30*C30)+(E36*C36) -> 4258.8
B46: Recouvrement des investissements* | E46: =D44+D45 -> 13001.71704
B48: Assurance et remisage | D48: prix d’achat x 1 % | E48: =(E35+E29)*0.01 -> 1820
B49: Coûts fixes TOTAUX/an | E49: =SUM(E42:E48) -> 14821.71704 | F49: (C)
B51: Coûts d’utilisation annuels
B52: Réparations | D52: pourcentage à allouer pour les réparations annuelles x prix d’achat | E52: =(E29*E32/100)+(E35*E38/100) -> 4916
B53: Coûts d’utilisation TOTAUX/an | E53: =SUM(E51:E52) -> 4916 | F53: (D)
B54: Totaux | E54: =SUM(E53,E49) -> 19737.71704
B55: = COÛTS ANNUELS DU MATÉRIEL (A + B + C + D) | E55: =SUM(E54,E27) -> 102323.3429 | F55: (E)
B56: Rémunération de la gestion | C56: 0.15 | D56: Rémunération de conducteur (entrepreneur ou salarié) | E56: 22
D57: Allocation de travail pour le déplacement des machines et temps morts | E57: 0.15
B58: + Marge bénéficiaire (rémunération de la gestion, frais d'administration) marge suggérée : 15% des coûts du matériel ( E x 0,15 ) | E58: =E55*C56 -> 15348.50143 | F58: (F)
B59: + Rémunération du conducteur (entrepreneur ou salarié) --- (on suggère de majorer de 15% le nombre d'heures-machine pour le éplacement, les temps morts) # heures-machine x 1,15 x rémunération/h | E59: =E6*E56*(1+E57) -> 6325 | F59: (G)
B60: = Coûts totaux (E+F+G) | E60: =E55+E58+E59 -> 123996.8443 | F60: (H)
B61: = Tarif | D61: $/acre | E61: =E60/C7 -> 48.15411429
D62: $/heure | E62: =E60/E6 -> 495.9873772
B63: * La méthode de recouvrement des investissements estime les coûts annuels d’amortissement et d’intérêt. Elle regroupe
B64: tous ces coûts en un seul calcul. Pour calculer les coûts de recouvrement des investissements, le facteur lié au
B65: recouvrement des investissements est multiplié par la dépréciation totale et l’on ajoute à ce résultat la valeur de reprise
B66: multipliée par le taux d’intérêt. Le tableau 5 présente les facteurs liés au recouvrement des investissements pour des
B67: combinaisons choisies d’années et de taux d’intérêt.
B68: ** Valeur de reprise = prix d’achat – (prix d’achat x taux d’amortissement annuel [voir le tableau 3] x nombre d’années depropriété).
B69: *** Intérêt : L’intérêt annuel moyen qu’aurait rapporté le placement de l’argent (le vôtre et/ou celui du prêteur) qui est immobilisé dans la machine.
B72: CALCUL DES TARIFS DE LOCATION DE MATÉRIEL
B73: + Coûts du matériel (voir Calcul des tarifs des travaux agricoles à forfait, ci-dessus) | E73: =E55 -> 102323.3429 | F73: (E)
B74: – Coût total du carburant et des lubrifiants (le cas échéant) (voir Calcul des tarifs des travaux agricoles à forfait, ci-dessus) | E74: =E24 -> 26306.25 | F74: (J)
B75: Rémunération de la gestion | E75: 0.15
B76: + Marge bénéficiaire (rémunération de la gestion, frais d'administration) on suggère de majorer de 15 % les coûts du matériel ( E – J) x 0,15 | E76: =(E73-E74)*E75 -> 11402.56393 | F76: (K)
B77: = Coûts totaux (E–J+K) | E77: =E73-E74+E76 -> 87419.65681 | F77: (L)
B78: = Tarif de location | D78: $/acre | E78: =E77/C7 -> 33.94938128
D79: $/heure | E79: =E77/E6 -> 349.6786272
B80: Remarque : Les loueurs peuvent appliquer des tarifs journaliers ou hebdomadaires minimums.
B83: fin de la feuille de calcul

Sheet Tableaux
B1: Tableaux 4 et 5 voir la droite
B3: Tableau 3, Heures d’utilisation annuelles, vie utile optimale, amortissement et pourcentage à allouer pour les réparations | H3: Tableau 4. Facteurs liés au recouvrement des investissements | X3: TABLEAU 5. Besoins relatifs au rendement, à la puissance motrice et au carburant pour certaines machines agricoles
B4: Machine | C4: Utilisation annuelle (heures) | D4: Vie utile optimale (années) | E4: Taux d’amortissement annuel (% du prix d’achat) | F4: Pourcentage à allouer pour les réparations annuelles (% du prix d’achat) | I4: Taux d’intérêt | Y4: Puissance (CV) à la prise de force1 | Z4: Acres/heure1 | AA4: Litres/acre | AB4: Litres/heure2
B5: Tracteurs 2RM | C5: 300 | D5: 20 | E5: 3.3 | F5: 2.2 | H5: Année | I5: 0.02 | J5: 0.03 | K5: 0.04 | L5: 0.05 | M5: 0.06 | N5: 0.07 | O5: 0.08 | P5: 0.09 | Q5: 0.1 | R5: 0.11 | S5: 0.12 | T5: 0.13 | U5: 0.14 | V5: 0.15 | X5: Charrue à 4 socs 18 pouces | Y5: 75 | Z5: 2.8 | AA5: 6.5 | AB5: 18.3
B6: Tracteurs avec assistance roues avant | C6: 450 | D6: 15 | E6: 4.4 | F6: 2.6 | H6: 1 | I6: 1.02 | J6: 1.03 | K6: 1.04 | L6: 1.05 | M6: 1.06 | N6: 1.07 | O6: 1.08 | P6: 1.09 | Q6: 1.1 | R6: 1.11 | S6: 1.12 | T6: 1.13 | U6: 1.14 | V6: 1.15 | X6: Charrue à 6 socs 18 pouces | Y6: 140 | Z6: 3 | AA6: 11.4 | AB6: 34.2
B7: Tracteurs 4RM | C7: 450 | D7: 15 | E7: 4.4 | F7: 2.5 | H7: 2 | I7: 0.515 | J7: 0.523 | K7: 0.53 | L7: 0.538 | M7: 0.545 | N7: 0.553 | O7: 0.561 | P7: 0.568 | Q7: 0.576 | R7: 0.584 | S7: 0.592 | T7: 0.599 | U7: 0.607 | V7: 0.615 | X7: Charrue à 8 socs 18 pouces | Y7: 250 | Z7: 5.6 | AA7: 10.9 | AB7: 61.1
B8: Moissonneuses-batteuses automotrices | C8: 250 | D8: 12 | E8: 5.6 | F8: 2.5 | H8: 3 | I8: 0.347 | J8: 0.354 | K8: 0.36 | L8: 0.367 | M8: 0.374 | N8: 0.381 | O8: 0.388 | P8: 0.395 | Q8: 0.402 | R8: 0.409 | S8: 0.416 | T8: 0.424 | U8: 0.431 | V8: 0.438 | X8: Cultivateur de 24 pieds | Y8: 140 | Z8: 9 | AA8: 3.8 | AB8: 34.2
B9: Têtes à grains | C9: 250 | D9: 15 | E9: 4.4 | F9: 2.5 | H9: 4 | I9: 0.263 | J9: 0.269 | K9: 0.275 | L9: 0.282 | M9: 0.289 | N9: 0.295 | O9: 0.302 | P9: 0.309 | Q9: 0.315 | R9: 0.322 | S9: 0.329 | T9: 0.336 | U9: 0.343 | V9: 0.35 | X9: Cultivateur de 31 pieds | Y9: 225 | Z9: 20.6 | AA9: 2.7 | AB9: 55
B10: Têtes à maïs | C10: 100 | D10: 15 | E10: 4.4 | F10: 2.8 | H10: 5 | I10: 0.212 | J10: 0.218 | K10: 0.225 | L10: 0.231 | M10: 0.237 | N10: 0.244 | O10: 0.25 | P10: 0.257 | Q10: 0.264 | R10: 0.271 | S10: 0.277 | T10: 0.284 | U10: 0.291 | V10: 0.298 | X10: Cultivateur de 44 pieds | Y10: 270 | Z10: 29.1 | AA10: 2.3 | AB10: 66
B11: Remorques à grain | C11: 250 | D11: 20 | E11: 3.3 | F11: 2 | H11: 6 | I11: 0.179 | J11: 0.185 | K11: 0.191 | L11: 0.197 | M11: 0.203 | N11: 0.21 | O11: 0.216 | P11: 0.223 | Q11: 0.23 | R11: 0.236 | S11: 0.243 | T11: 0.25 | U11: 0.257 | V11: 0.264 | X11: Charrue chisel de 16 pieds | Y11: 155 | Z11: 9 | AA11: 4.2 | AB11: 37.9
B12: Charrues à disques | C12: 100 | D12: 20 | E12: 3.3 | F12: 1.5 | H12: 7 | I12: 0.155 | J12: 0.161 | K12: 0.167 | L12: 0.173 | M12: 0.179 | N12: 0.186 | O12: 0.192 | P12: 0.199 | Q12: 0.205 | R12: 0.212 | S12: 0.219 | T12: 0.226 | U12: 0.233 | V12: 0.24 | X12: Charrue chisel de 21 pieds | Y12: 240 | Z12: 12.6 | AA12: 4.7 | AB12: 58.6
B13: Travail du sol vertical | C13: 100 | D13: 20 | E13: 3.3 | F13: 3.5 | H13: 8 | I13: 0.137 | J13: 0.142 | K13: 0.149 | L13: 0.155 | M13: 0.161 | N13: 0.167 | O13: 0.174 | P13: 0.181 | Q13: 0.187 | R13: 0.194 | S13: 0.201 | T13: 0.208 | U13: 0.216 | V13: 0.223 | X13: Pulvériseur tandem de 24 pieds | Y13: 150 | Z13: 15.1 | AA13: 2.4 | AB13: 36.7
B14: Cultivateurs, bineuses | C14: 200 | D14: 20 | E14: 3.3 | F14: 1.5 | H14: 9 | I14: 0.123 | J14: 0.128 | K14: 0.134 | L14: 0.141 | M14: 0.147 | N14: 0.153 | O14: 0.16 | P14: 0.167 | Q14: 0.174 | R14: 0.181 | S14: 0.188 | T14: 0.195 | U14: 0.202 | V14: 0.21 | X14: Pulvériseur tandem de 30 pieds | Y14: 225 | Z14: 15.3 | AA14: 3.6 | AB14: 55
B15: Herses | C15: 200 | D15: 25 | E15: 2.7 | F15: 0.5 | H15: 10 | I15: 0.111 | J15: 0.117 | K15: 0.123 | L15: 0.13 | M15: 0.136 | N15: 0.142 | O15: 0.149 | P15: 0.156 | Q15: 0.163 | R15: 0.17 | S15: 0.177 | T15: 0.184 | U15: 0.192 | V15: 0.199 | X15: Pulvériseur déporté de 10 pieds | Y15: 110 | Z15: 6 | AA15: 4.5 | AB15: 26.9
B16: Semoirs | C16: 200 | D16: 15 | E16: 4.4 | F16: 3 | H16: 11 | I16: 0.102 | J16: 0.108 | K16: 0.114 | L16: 0.12 | M16: 0.127 | N16: 0.133 | O16: 0.14 | P16: 0.147 | Q16: 0.154 | R16: 0.161 | S16: 0.168 | T16: 0.176 | U16: 0.183 | V16: 0.191 | X16: Pulvériseur déporté de 16 pieds | Y16: 155 | Z16: 9.6 | AA16: 3.9 | AB16: 37.9
B17: Semoirs en lignes | C17: 100 | D17: 10 | E17: 6.7 | F17: 4 | H17: 12 | I17: 0.095 | J17: 0.1 | K17: 0.107 | L17: 0.113 | M17: 0.119 | N17: 0.126 | O17: 0.133 | P17: 0.14 | Q17: 0.147 | R17: 0.154 | S17: 0.161 | T17: 0.169 | U17: 0.177 | V17: 0.184 | X17: Machine de labour vertical de 21 pieds | Y17: 190 | Z17: 19.6 | AA17: 2.4 | AB17: 46.4
B18: Pulvérisateurs enjambeurs automoteurs | C18: 200 | D18: 8 | E18: 8.3 | F18: 3.5 | H18: 13 | I18: 0.088 | J18: 0.094 | K18: 0.1 | L18: 0.106 | M18: 0.113 | N18: 0.12 | O18: 0.127 | P18: 0.134 | Q18: 0.141 | R18: 0.148 | S18: 0.156 | T18: 0.163 | U18: 0.171 | V18: 0.179 | X18: Machine de labour vertical de 30 pieds | Y18: 270 | Z18: 27.2 | AA18: 2.4 | AB18: 66
B19: Faucheuse - conditionneuse | C19: 150 | D19: 15 | E19: 4.4 | F19: 2.3 | H19: 14 | I19: 0.083 | J19: 0.089 | K19: 0.095 | L19: 0.101 | M19: 0.108 | N19: 0.114 | O19: 0.121 | P19: 0.128 | Q19: 0.136 | R19: 0.143 | S19: 0.151 | T19: 0.159 | U19: 0.167 | V19: 0.175 | X19: Machine de labour vertical de 43 pieds | Y19: 370 | Z19: 39.2 | AA19: 2.3 | AB19: 90.4
B20: Presses à balles rondes | C20: 100 | D20: 15 | E20: 4.4 | F20: 1.5 | H20: 15 | I20: 0.078 | J20: 0.084 | K20: 0.09 | L20: 0.096 | M20: 0.103 | N20: 0.11 | O20: 0.117 | P20: 0.124 | Q20: 0.131 | R20: 0.139 | S20: 0.147 | T20: 0.155 | U20: 0.163 | V20: 0.171 | X20: Machine de labour en bandes à 12 rangs | Y20: 290 | Z20: 17.5 | AA20: 4 | AB20: 70.9
B21: Presses à grosses balles carrées | C21: 150 | D21: 15 | E21: 4.4 | F21: 1.7 | H21: 16 | I21: 0.074 | J21: 0.08 | K21: 0.086 | L21: 0.092 | M21: 0.099 | N21: 0.106 | O21: 0.113 | P21: 0.12 | Q21: 0.128 | R21: 0.136 | S21: 0.143 | T21: 0.151 | U21: 0.16 | V21: 0.168 | X21: Semoir en ligne à 6 rangs de 30 pouces | Y21: 95 | Z21: 7.6 | AA21: 3.1 | AB21: 23.2
B22: Presses à petites balles carrées | C22: 100 | D22: 20 | E22: 3.3 | F22: 1 | H22: 17 | I22: 0.07 | J22: 0.076 | K22: 0.082 | L22: 0.089 | M22: 0.095 | N22: 0.102 | O22: 0.11 | P22: 0.117 | Q22: 0.125 | R22: 0.132 | S22: 0.14 | T22: 0.149 | U22: 0.157 | V22: 0.165 | X22: Semoir en ligne à 12 rangs de 30 pouces | Y22: 140 | Z22: 15.3 | AA22: 2.2 | AB22: 34.2
B23: Récolteuses-hacheuses automotrices | C23: 400 | D23: 10 | E23: 6.7 | F23: 8 | H23: 18 | I23: 0.067 | J23: 0.073 | K23: 0.079 | L23: 0.086 | M23: 0.092 | N23: 0.099 | O23: 0.107 | P23: 0.114 | Q23: 0.122 | R23: 0.13 | S23: 0.138 | T23: 0.146 | U23: 0.155 | V23: 0.163 | X23: Semoir en ligne à 16 rangs de 30 pouces | Y23: 155 | Z23: 20.4 | AA23: 1.9 | AB23: 37.9
B24: Épandeurs de fumier | C24: 100 | D24: 10 | E24: 6.7 | F24: 4.4 | H24: 19 | I24: 0.064 | J24: 0.07 | K24: 0.076 | L24: 0.083 | M24: 0.09 | N24: 0.097 | O24: 0.104 | P24: 0.112 | Q24: 0.12 | R24: 0.128 | S24: 0.136 | T24: 0.144 | U24: 0.153 | V24: 0.161 | X24: Semoir-distributeur à 6 rangs de 30 pouces | Y24: 75 | Z24: 6.4 | AA24: 2.9 | AB24: 18.3
B25: Source : Farm Machinery Custom and Rental Rate Guide, ministère de l’Agriculture de la Saskatchewan, 2018-2019. | H25: 20 | I25: 0.061 | J25: 0.067 | K25: 0.074 | L25: 0.08 | M25: 0.087 | N25: 0.094 | O25: 0.102 | P25: 0.11 | Q25: 0.117 | R25: 0.126 | S25: 0.134 | T25: 0.142 | U25: 0.151 | V25: 0.16 | X25: Semoir-distributeur à 12 rangs de 30 pouces | Y25: 155 | Z25: 15.3 | AA25: 2.5 | AB25: 37.9
H26: Source: Estimating Farm Machinery Costs, Edwards, William, Iowa State University, 2015. | X26: Semoir-distributeur à 16 rangs de 30 pouces | Y26: 225 | Z26: 20.4 | AA26: 2.7 | AB26: 55
X27: Semoir à céréales de 25 pieds | Y27: 140 | Z27: 11.7 | AA27: 2.9 | AB27: 34.2
H28: Tracteur exemple, Tableau 3 et 4: | X28: Semoir à céréales de 35 pieds | Y28: 225 | Z28: 16.3 | AA28: 3.4 | AB28: 55
I29: Tracteur à 4 roues motrices de 310 chevauxvapeur (CV) | X29: Semoir à roues plombeuses, 12 pieds | Y29: 75 | Z29: 5.1 | AA29: 3.6 | AB29: 18.3
B30: EXEMPLE | C30: CALCUL DES COÛTS DE RÉPARATION ANNUELS | H30: Prix d’achat | I30: 470 000 $ | X30: Semoir à roues plombeuses, 20 pieds | Y30: 140 | Z30: 8.5 | AA30: 4 | AB30: 34.2
B31: Coût d’une moissonneuse-batteuse 375 HP neuve | C31: 660 000 $ = 478 000 $ (moissonneuse-batteuse) + 122 000 $ (tête à maïs) + 60 000 $ (tête à grains) | H31: Utilisation prévue | I31: 450 h par an pendant 5 ans | X31: Semoir (semis direct), 15 pieds | Y31: 140 | Z31: 7 | AA31: 4.9 | AB31: 34.2
B32: Pourcentages estimatifs à allouer pour les réparations* | C32: 2,5 % - moissonneuse-batteuse | H32: Amortissement | I32: Amortissement total estimatif sur 5 ans | X32: Semoir (semis direct), 20 pieds | Y32: 175 | Z32: 9.3 | AA32: 4.6 | AB32: 42.8
C33: 2,8 % - tête à maïs | I33: = taux d’amortissement annuel de 4,4 % (tableau 3,tracteurs à 4 roues motrices) x 5 ans x 470 000 $) | X33: Pulvérisateur de 90 pieds, tracté | Y33: 95 | Z33: 49.6 | AA33: 0.5 | AB33: 23.2
C34: 2,5 % - tête à grains | H34: Valeur de reprise | I34: = 470 000 $ (prix d’achat) – 103 400 $ (amortissement total) = 366 600 $ | X34: Pulvérisateur de 90 pieds, automoteur | Y34: 85 | Z34: 72.5 | AA34: 0.3 | AB34: 20.8
B35: Coûts de réparation annuels | C35: Moissonneuse-batteuse : 478 000 $ x 2,5 %, soit une moyenne de 11 950 $/an | X35: Faucheuse-conditionneuse de 9 pieds | Y35: 40 | Z35: 4.4 | AA35: 2.2 | AB35: 9.8
C36: Tête à maïs : 122 000 $ x 2,8 %, soit une moyenne de 3 416 $/an | H36: Recouvrement du capital | X36: Faucheuse-conditionneuse rotative de 13 pieds | Y36: 75 | Z36: 9.7 | AA36: 1.9 | AB36: 18.3
C37: Tête à grains : 60 000 $ x 2,5 %, soit une moyenne de 1 500 $/an | I37: = (amortissement total x facteur de recouvrement du capital) + (valeur de reprise x taux d’intérêt) | X37: Presse à balles carrées | Y37: 40 | Z37: 4.4 | AA37: 2.2 | AB37: 9.8
C38: Total des coûts de réparation annuels = 11 950 $ + 3 416 $ + 1 500 $ = 16 866 $ par an | I38: = (103 400 $ x 0,218 (du tableau 4, 3 % d’intérêt sur 5 ans)) + (366 600 $ x 3 %) | X38: Presse à balles rondes de 1000 lb | Y38: 60 | Z38: 3 | AA38: 4.9 | AB38: 14.7
B39: Machine d’occasion | C39: Pour calculer l’amortissement d’une machine d’occasion, on soustrait | I39: = 22 541 $ + 10 998 $ | X39: Presse à balles rondes de 1500 lb | Y39: 60 | Z39: 4 | AA39: 3.7 | AB39: 14.7
C40: du prix réellement payé pour acheter la machine la valeur prévue | I40: = recouvrement du capital de 33 539 $ par an (amortissement et frais d’intérêt). | X40: Presse à grosses balles carrées | Y40: 140 | Z40: 16.3 | AA40: 2.1 | AB40: 34.2
C41: de reprise ou de récupération et on divise le résultat par la vie | X41: Presse à balles rondes de 1000 lb/enrubanneuse | Y41: 60 | Z41: 3 | AA41: 4.9 | AB41: 14.7
C42: utile prévue dans l’exploitation. Le pourcentage à allouer pour les | X42: Récolteuse-hacheuse à 2 rangs | Y42: 140 | Z42: 1.4 | AA42: 24.4 | AB42: 34.2
C43: réparations doit être augmenté en fonction de l’âge de la machine | X43: Récolteuse-hacheuse automotrice à 6 rangs de 15 pieds | Y43: 625 | Z43: 5.1 | AA43: 11.2 | AB43: 56.8
C44: ou du nombre d’heures qu’elle a déjà effectué. Il faut s’attendre | X44: Grosse souffleuse à fourrage | Y44: 60 | Z44: — | AA44: — | AB44: 14.7
C45: à dépenser plus que la normale pendant l’année qui suit l’achat | X45: Moissonneuse-batteuse à maïs, 6 becs cueilleurs–30 po | Y45: 275 | Z45: 5.1 | AA45: 13.2 | AB45: 67.2
C46: d’une machine d’occasion à cause des réparations supplémentaires | X46: Moissonneuse-batteuse à maïs, 12 becs cueilleurs–30 po | Y46: 375 | Z46: 10.2 | AA46: 9 | AB46: 91.6
C47: nécessaires pour remettre celle-ci en parfait état de marche. | X47: Moissonneuse-batteuse à céréales, 25 pieds | Y47: 375 | Z47: 7.4 | AA47: 12.4 | AB47: 91.6
X48: Moissonneuse-batteuse à céréales, 35 pieds | Y48: 375 | Z48: 10.4 | AA48: 8.8 | AB48: 91.6
X49: 1. Illinois Machinery Cost Estimates for 2019, Université de l’Illinois, Département de l’économie de l’agriculture et de la consommation, 2019.
X50: 2. Nebraska Tractor Test Laboratory. Tractor fuel consumption results, 2008–2017.
A53: fin de la feuille de calcul

Sheet Fiche technique
A21: Cliquer deux fois pour consulter en format pdf
A35: fin de la feuille de calcul

Sheet tarifs2018
B1: Enquête sur les tarifs perçus en 2018 pour les
B2: travaux agricoles à forfait
B3: J. Molenhuis - MAAARO - Analyse des activités commerciales et des coûts de production
B4: Ficheinfo
B5: Détails de l'enquête
B6: Résultats de l'enquête sur les tarifs perçus en 2018 pour les travaux agricoles à forfait résume les résultats d'une étude effectuée
B7: en Ontario auprès de 200 entrepreneurs en travaux agricoles. Les résultats ont été synthétisés à l'échelle provinciale et également
B8: à l'échelle de 6 régions. Ils ont été assortis, chaque fois que possible, du tarif provincial moyen qui avait été observé lors de
B9: l'enquête de 2015, la dernière à avoir été faite avant celle de 2018.
B11: Tarifs moyens
B12: Un tarif moyen est fourni chaque fois qu'au moins trois entrepreneurs ont répondu à l'enquête. Plus le nombre d'entrepreneurs
B13: ayant indiqué un tarif est élevé, plus le sommaire traduit fidèlement les tarifs du marché.
B15: Qu'est-ce que les percentiles et à quoi servent-ils?
B16: Les percentiles servent à montrer l'étendue de la fourchette à l'intérieur de laquelle varient la plupart des tarifs. Par exemple, dans
B17: le sommaire provincial, le 15e percentile pour le moissonnage-battage du maïs est de 43 $/acre et le
B18: 85e percentile, de 54 $/acre. Cela signifie que 15 % des entrepreneurs ayant répondu demandaient 43 $/acre ou moins et que 15 %
B19: demandaient plus de 54 $. Soixante-dix pour cent (85e - 15e percentiles) des répondants demandaient entre 43$ et 54 $/acre. Le
B20: tarif moyen était donc de 48 $/acre.
B22: Régions
B23: Région 1
B24: Chatham-Kent, Elgin, Essex, Lambton, Middlesex
B25: Région 2
B26: Brant, Haldimand, Hamilton, Niagara, Norfolk, Oxford
B27: Région 3
B28: Bruce, Dufferin, Grey, Halton, Huron, Peel, Perth, Simcoe, Waterloo, Wellington
B29: Région 4
B30: Durham, Haliburton, Hastings, Kawartha Lakes, Muskoka, Northumberland, Parry Sound, Peterborough, Prince Edward, York
B31: Région 5
B32: Frontenac, Lanark, Leeds-Grenville, Lennox-Addington, Ottawa, Prescott-Russell, Renfrew, Stormont-Dundas-Glengarry
B33: Région 6
B34: Algoma, Cochrane, Kenora, Manitoulin, Nipissing, Rainy River, Sudbury, Thunder Bay, Timiskaming
B41: Enquête sur les tarifs perçus en 2018 pour les travaux agricoles à forfait
B42: TÂCHE | E42: Provincial | I42: Région 1 | K42: Région 2 | M42: Région 3 | O42: Région 4 | Q42: Région 5 | S42: Région 6
C43: UNITÉ | D43: Nbre | E43: Moy. | F43: Percentile 2018 | H43: Moy. | I43: Nbre | J43: Moy. | K43: Nbre | L43: Moy. | M43: Nbre | N43: Moy. | O43: Nbre | P43: Moy. | Q43: Nbre | R43: Moy. | S43: Nbre | T43: Moy.
E44: 2018 | F44: 15e | G44: 85e | H44: 2015 | J44: 2018 | L44: 2018 | N44: 2018 | P44: 2018 | R44: 2018 | T44: 2018
B45: TRAVAIL DU SOL
B46: Charrue à socs | C46: acre | D46: 44 | E46: 32.67478355 | F46: 25 | G46: 39.1 | H46: 28.78205128 | I46: 15 | J46: 32.06666667 | K46: 4 | L46: 33 | M46: 18 | N46: 31.96296296 | Q46: 4 | R46: 37.33928571
C47: h | D47: 36 | E47: 133.4027778 | F47: 96.25 | G47: 172.875 | H47: 130 | I47: 13 | J47: 156.3846154 | M47: 15 | N47: 114.4666667 | Q47: 4 | R47: 152.625
B48: Charrue chisel/déchaumeuse | C48: acre | D48: 55 | E48: 26.1 | F48: 20.1 | G48: 30 | H48: 24 | I48: 18 | J48: 27.22222222 | K48: 12 | L48: 24.91666667 | M48: 18 | N48: 24.08333333 | Q48: 6 | R48: 31.33333333
C49: h | D49: 38 | E49: 221.3947368 | F49: 150 | G49: 303.6 | H49: 190 | I49: 11 | J49: 241.6363636 | K49: 8 | L49: 212.125 | M49: 14 | N49: 222.7142857 | Q49: 5 | R49: 188
B50: Charrue à disques - labourage | C50: acre | D50: 36 | E50: 21.47222222 | F50: 16 | G50: 25 | H50: 19 | I50: 11 | J50: 21.40909091 | M50: 15 | N50: 21.83333333 | O50: 3 | P50: 19.66666667 | Q50: 5 | R50: 20.6
C51: h | D51: 24 | E51: 249.3333333 | F51: 120 | G51: 300 | H51: 213 | I51: 6 | J51: 294 | M51: 11 | N51: 247.6363636 | Q51: 4 | R51: 225
B52: Char. à d. - trav. sup. du sol | C52: acre | D52: 33 | E52: 18.46632997 | F52: 14.8 | G52: 25 | H52: 17 | I52: 10 | J52: 17.75 | K52: 6 | L52: 18.25 | M52: 8 | N52: 19.375 | Q52: 8 | R52: 18.42361111
C53: h | D53: 23 | E53: 249.1956522 | F53: 153 | G53: 354 | H53: 212 | I53: 7 | J53: 280.5714286 | K53: 4 | L53: 295.625 | M53: 5 | N53: 249.2 | Q53: 7 | R53: 191.2857143
B54: Disque déporté | C54: acre | D54: 13 | E54: 24.60761461 | F54: 15.46666667 | G54: 30 | I54: 4 | J54: 23 | M54: 3 | N54: 20.37037037 | Q54: 6 | R54: 27.7979798
C55: h | D55: 7 | E55: 191 | Q55: 4 | R55: 154.5
B56: Travail du sol - vertical | C56: acre | D56: 56 | E56: 21.78571429 | F56: 17.25 | G56: 25.75 | H56: 20 | I56: 17 | J56: 22 | K56: 9 | L56: 19.22222222 | M56: 16 | N56: 20.6875 | O56: 6 | P56: 24.33333333 | Q56: 7 | R56: 24.42857143
C57: h | D57: 44 | E57: 342.4772727 | F57: 177.25 | G57: 500 | H57: 282 | I57: 12 | J57: 419.0833333 | K57: 6 | L57: 308 | M57: 12 | N57: 306.8333333 | O57: 6 | P57: 313.3333333 | Q57: 7 | R57: 325.7142857
B58: Travail du sol par bandes à l'automne
B59: Avec engrais | C59: acre | D59: 5 | E59: 26.2 | H59: 23
C60: h | D60: 3 | E60: 377.3333333 | H60: 426
B61: Sans engrais | C61: acre | F61: 30.9 | G61: 35.1
C62: h
B63: Travail du sol en bandes | C63: acre | D63: 14 | E63: 28.32142857 | F63: 21.9 | G63: 35.05 | I63: 5 | J63: 29.9 | K63: 3 | L63: 36.33333333 | M63: 6 | N63: 23
C64: h | D64: 6 | E64: 354 | M64: 4 | N64: 357.25
B65: Labour avec disque en V | C65: acre | D65: 3 | E65: 30.33333333 | I65: 3 | J65: 30.33333333
C66: h | F66: 115.5 | G66: 164.5
B67: Cultivateur | C67: acre | D67: 91 | E67: 16.37467295 | F67: 12 | G67: 20 | H67: 13.9443271 | I67: 25 | J67: 16.8 | K67: 13 | L67: 16.34615385 | M67: 31 | N67: 14.64285714 | O67: 6 | P67: 17.16666667 | Q67: 14 | R67: 19.69047619
C68: h | D68: 63 | E68: 337.3174603 | F68: 151.8 | G68: 525 | H68: 241 | I68: 17 | J68: 337.0588235 | K68: 8 | L68: 365.125 | M68: 21 | N68: 344.4761905 | O68: 4 | P68: 251.25 | Q68: 12 | R68: 340.9166667
B69: Hersage | C69: acre | D69: 4 | E69: 15 | H69: 7.055555556
C70: h | F70: 195.2 | G70: 396.8 | H70: 152.5714286
B71: Travail profond/Sous-soleuse | C71: acre | D71: 12 | E71: 32 | F71: 23 | G71: 40 | H71: 29 | I71: 6 | J71: 32
C72: h | D72: 8 | E72: 211.21875 | F72: 168.6625 | G72: 243.95 | H72: 215 | I72: 3 | J72: 252.6666667
B73: Herse de finition | C73: acre | D73: 5 | E73: 15.48333333
C74: h | D74: 5 | E74: 221
B75: Rouleau | C75: acre | D75: 46 | E75: 7.916666667 | F75: 5 | G75: 10.25 | H75: 7.386363636 | I75: 7 | J75: 8.642857143 | K75: 6 | L75: 7.583333333 | M75: 18 | N75: 7.342592593 | O75: 4 | P75: 10.75 | Q75: 11 | R75: 7.545454545
C76: h | D76: 26 | E76: 190.0384615 | F76: 95 | G76: 300 | H76: 148 | K76: 4 | L76: 160.5 | M76: 9 | N76: 204.6666667 | Q76: 9 | R76: 186.1111111
B77: Récolte en tiges | C77: acre | D77: 12 | E77: 17.08333333 | F77: 11.2 | G77: 24.1 | H77: 14 | I77: 8 | J77: 20
C78: h | D78: 7 | E78: 160.4285714 | H78: 167 | I78: 4 | J78: 203
B79: SEMIS
B80: SOYA
B82: Semoir en lignes standard | C82: acre | D82: 43 | E82: 24.3255814 | F82: 20 | G82: 29.4 | H82: 21 | I82: 13 | J82: 22.07692308 | K82: 5 | L82: 27.4 | M82: 12 | N82: 23 | O82: 5 | P82: 26 | Q82: 8 | R82: 27
C83: h | D83: 24 | E83: 394.2916667 | F83: 151.2 | G83: 544.25 | H83: 302 | I83: 7 | J83: 446.4285714 | M83: 6 | N83: 429 | O83: 4 | P83: 314.5 | Q83: 5 | R83: 341.2
B84: Travail minimum/semis direct | C84: acre | D84: 56 | E84: 25.74107143 | F84: 22 | G84: 30 | H84: 24.8362069 | I84: 21 | J84: 23.85714286 | K84: 5 | L84: 23.4 | M84: 14 | N84: 24.10714286 | O84: 4 | P84: 30 | Q84: 12 | R84: 30.5
C85: h | D85: 34 | E85: 309.0294118 | F85: 175 | G85: 475.25 | H85: 346 | I85: 15 | J85: 301.7333333 | K85: 3 | L85: 218.6666667 | M85: 6 | N85: 385.6666667 | Q85: 8 | R85: 316.375
B87: Semoir pour travail en bandes | C87: acre | D87: 8 | E87: 26.125 | F87: 24 | G87: 29.9 | K87: 3 | L87: 27 | M87: 3 | N87: 24.33333333
C88: h | D88: 4 | E88: 388.25 | M88: 3 | N88: 456.3333333
B89: Interligne de 24 po ou plus | C89: acre
B90: Semoir de précision standard | C90: acre | D90: 10 | E90: 23.6 | F90: 19.05 | G90: 28.6 | H90: 20 | I90: 4 | J90: 21 | M90: 4 | N90: 23
C91: h | D91: 4 | E91: 337.25 | H91: 183
B92: Semis direct | C92: acre | D92: 57 | E92: 25.73684211 | F92: 20.4 | G92: 30 | H92: 24 | I92: 14 | J92: 23.5 | K92: 9 | L92: 22.77777778 | M92: 14 | N92: 23.14285714 | O92: 10 | P92: 28.4 | Q92: 9 | R92: 32.88888889
C93: h | D93: 43 | E93: 285.8953488 | F93: 135.6 | G93: 500 | H93: 246 | I93: 9 | J93: 309.2222222 | K93: 6 | L93: 238.6666667 | M93: 10 | N93: 305.4 | O93: 10 | P93: 194 | Q93: 7 | R93: 378.5
B94: Semoir pneum. sans engrais | C94: acre | D94: 24 | E94: 25.125 | F94: 22 | G94: 27.55 | H94: 24 | I94: 5 | J94: 25.2 | M94: 12 | N94: 24.41666667 | O94: 3 | P94: 25.66666667 | Q94: 3 | R94: 27.33333333
C95: h | D95: 15 | E95: 484.6666667 | F95: 340.5 | G95: 537.3 | H95: 422 | I95: 3 | J95: 319.3333333 | M95: 8 | N95: 476.125
B96: Semoir pneum. avec engrais | C96: acre | D96: 33 | E96: 26.3030303 | F96: 23.8 | G96: 30 | H96: 24.53846154 | I96: 6 | J96: 25.83333333 | K96: 4 | L96: 26.75 | M96: 14 | N96: 25.07142857 | Q96: 7 | R96: 28.71428571
C97: h | D97: 23 | E97: 441.0869565 | F97: 291.6 | G97: 536.4 | H97: 405 | I97: 4 | J97: 467.25 | K97: 3 | L97: 311 | M97: 10 | N97: 448.5 | Q97: 6 | R97: 476.3333333
B102: Enquête sur les tarifs perçus en 2018 pour les travaux agricoles à forfait
B103: TÂCHE | E103: Provincial | I103: Région 1 | K103: Région 2 | M103: Région 3 | O103: Région 4 | Q103: Région 5 | S103: Région 6
C104: UNITÉ | D104: Nbre | E104: Moy. | F104: Percentile 2018 | H104: Moy. | I104: Nbre | J104: Moy. | K104: Nbre | L104: Moy. | M104: Nbre | N104: Moy. | O104: Nbre | P104: Moy. | Q104: Nbre | R104: Moy. | S104: Nbre | T104: Moy.
E105: 2018 | F105: 15e | G105: 85e | H105: 2015 | J105: 2018 | L105: 2018 | N105: 2018 | P105: 2018 | R105: 2018 | T105: 2018
B106: SEMIS
B107: MAÏS
B108: Semoir en lignes standard
B109: Interligne de 29 po ou moins
B110: avec engrais de démarrage | C110: acre | D110: 14 | E110: 25.57142857 | F110: 20.95 | G110: 30 | H110: 20.81578947 | I110: 8 | J110: 24.625
C111: h | D111: 5 | E111: 323.8 | H111: 270
B112: sans engrais de démarrage | C112: acre | D112: 3 | E112: 23.33333333 | H112: 22
C113: h | F113: 163.75 | G113: 461.25
B114: Interligne de 30 po ou plus
B115: avec engrais de démarrage | C115: acre | D115: 68 | E115: 24.88655462 | F115: 20 | G115: 30 | H115: 22 | I115: 17 | J115: 24.70588235 | K115: 9 | L115: 24 | M115: 22 | N115: 23.95454545 | O115: 7 | P115: 27.46938776 | Q115: 12 | R115: 26.16666667
C116: h | D116: 46 | E116: 330.7608696 | F116: 194.25 | G116: 485 | H116: 314.5789474 | I116: 15 | J116: 314 | K116: 6 | L116: 394.3333333 | M116: 10 | N116: 318.2 | O116: 5 | P116: 370.2 | Q116: 10 | R116: 310.6
B117: sans engrais de démarrage | C117: acre | D117: 12 | E117: 23.16666667 | F117: 19.3 | G117: 27.35 | H117: 20 | M117: 6 | N117: 20.66666667
C118: h | D118: 6 | E118: 430 | H118: 299 | M118: 3 | N118: 310
B119: Travail minimum/semis direct
B120: Interligne de 29 po ou moins
B121: avec engrais de démarrage | C121: acre | D121: 7 | E121: 27.85714286 | H121: 25
C122: h | D122: 3 | E122: 409.3333333
B123: sans engrais de démarrage | C123: acre | D123: 4 | E123: 28.5
B124: Interligne de 30 po ou plus
B125: avec engrais de démarrage | C125: acre | D125: 28 | E125: 28.64285714 | F125: 24 | G125: 33.9 | H125: 26.15 | I125: 8 | J125: 24.75 | M125: 7 | N125: 27.57142857 | O125: 4 | P125: 30 | Q125: 7 | R125: 33.42857143
C126: h | D126: 17 | E126: 299.2941176 | F126: 157.2 | G126: 390 | H126: 273 | I126: 5 | J126: 197.6 | M126: 5 | N126: 393 | Q126: 4 | R126: 336.25
B127: sans engrais de démarrage | C127: acre | D127: 4 | E127: 28.125 | H127: 26.41666667 | M127: 3 | N127: 27.5
B128: Semoir pour travail en bandes
B129: Interligne de 29 po ou moins
B130: avec engrais de démarrage | C130: acre | D130: 3 | E130: 27.33333333
C131: h | F131: 330 | G131: 330
B132: sans engrais de démarrage | C132: acre | F132: 25 | G132: 25
B133: Interligne de 30 po ou plus
B134: avec engrais de démarrage | C134: acre | D134: 6 | E134: 29.33333333 | K134: 3 | L134: 32
C135: h | F135: 205.9 | G135: 308.1
B136: sans engrais de démarrage | C136: acre
B137: CÉRÉALES (AVOINE, ORGE, BLÉ)
B138: Semoir standard
B139: avec engrais de démarrage | C139: acre | D139: 12 | E139: 22.33333333 | F139: 16 | G139: 30 | H139: 18.6875 | I139: 4 | J139: 20.5 | M139: 5 | N139: 21
C140: h | D140: 8 | E140: 193.625 | F140: 81.4 | G140: 349.7 | H140: 167.6666667 | M140: 4 | N140: 99.5
B141: sans engrais de démarrage | C141: acre | D141: 11 | E141: 22.36363636 | F141: 18 | G141: 25.5 | H141: 18 | M141: 5 | N141: 22.4 | Q141: 3 | R141: 24.66666667
C142: h | D142: 6 | E142: 170.8333333 | H142: 153 | Q142: 4 | R142: 202.5
B143: Semis direct
B144: avec engrais de démarrage | C144: acre | D144: 34 | E144: 27.08823529 | F144: 22 | G144: 30.1 | H144: 24 | I144: 9 | J144: 25.88888889 | K144: 5 | L144: 23.8 | M144: 10 | N144: 25.7 | O144: 5 | P144: 31.2 | Q144: 4 | R144: 32
C145: h | D145: 20 | E145: 270.45 | F145: 153.4 | G145: 457.5 | H145: 247 | I145: 6 | J145: 250.6666667 | K145: 3 | L145: 203 | M145: 6 | N145: 336 | Q145: 3 | R145: 266.6666667
B146: sans engrais de démarrage | C146: acre | D146: 22 | E146: 24.40909091 | F146: 20 | G146: 29.55 | H146: 24 | I146: 3 | J146: 24 | K146: 3 | L146: 20.33333333 | M146: 9 | N146: 22 | O146: 4 | P146: 28.25 | Q146: 3 | R146: 31
C147: h | D147: 14 | E147: 259.0357143 | F147: 167.6 | G147: 311 | H147: 268 | I147: 3 | J147: 246.3333333 | M147: 3 | N147: 206.6666667 | O147: 3 | P147: 185.6666667 | Q147: 3 | R147: 314.1666667
B148: Semoir pneum. sans engrais | C148: acre | D148: 15 | E148: 26.4 | F148: 24.1 | G148: 30 | H148: 23.66666667 | M148: 5 | N148: 25.6 | O148: 3 | P148: 25.66666667 | Q148: 3 | R148: 29.66666667
C149: h | D149: 8 | E149: 401.625 | F149: 341 | G149: 497 | H149: 438 | M149: 3 | N149: 446.6666667
B150: Semoir pneum. avec engrais | C150: acre | D150: 31 | E150: 25.58064516 | F150: 23.5 | G150: 29.5 | H150: 24.21052632 | I150: 5 | J150: 24.4 | K150: 5 | L150: 25 | M150: 13 | N150: 24.38461538 | Q150: 5 | R150: 29
C151: h | D151: 23 | E151: 431.2173913 | F151: 307.5 | G151: 536.4 | H151: 425 | I151: 5 | J151: 428.6 | K151: 4 | L151: 306.25 | M151: 10 | N151: 458 | Q151: 3 | R151: 506.6666667
B152: CULTURES FOURRAGÈRES
B153: Semoir en lignes | C153: acre | D153: 28 | E153: 25.35714286 | F153: 20 | G153: 30 | H153: 23.61363636 | I153: 7 | J153: 21.28571429 | K153: 4 | L153: 24.5 | M153: 5 | N153: 24 | O153: 5 | P153: 29 | Q153: 7 | R153: 28.28571429
C154: h | D154: 17 | E154: 242.1764706 | F154: 154.8 | G154: 273.6 | H154: 237 | I154: 3 | J154: 214 | M154: 3 | N154: 202.6666667 | O154: 4 | P154: 212 | Q154: 5 | R154: 327
B155: Semoir de type Brillion | C155: acre | D155: 5 | E155: 21.4
C156: h | F156: 35.4 | G156: 88.6
B157: Épandage centrifuge/VTT | C157: acre | D157: 12 | E157: 5.5 | F157: 4.15 | G157: 6.525 | H157: 4.857142857 | I157: 7 | J157: 5
C158: h | D158: 7 | E158: 119.6428571 | H158: 94 | I158: 3 | J158: 106.6666667
B160: Enquête sur les tarifs perçus en 2018 pour les travaux agricoles à forfait
B161: TÂCHE | E161: Provincial | I161: Région 1 | K161: Région 2 | M161: Région 3 | O161: Région 4 | Q161: Région 5 | S161: Région 6
C162: UNITÉ | D162: Nbre | E162: Moy. | F162: Percentile 2018 | H162: Moy. | I162: Nbre | J162: Moy. | K162: Nbre | L162: Moy. | M162: Nbre | N162: Moy. | O162: Nbre | P162: Moy. | Q162: Nbre | R162: Moy. | S162: Nbre | T162: Moy.
E163: 2018 | F163: 15e | G163: 85e | H163: 2015 | J163: 2018 | L163: 2018 | N163: 2018 | P163: 2018 | R163: 2018 | T163: 2018
B164: DÉSHERBAGE
B165: HERBICIDE (excluant le coût de l'herbicide)
B166: Pulvérisateur traîné | C166: acre | D166: 32 | E166: 10.484375 | F166: 9 | G166: 12 | H166: 9.390322581 | I166: 13 | J166: 10.42307692 | K166: 3 | L166: 11.16666667 | M166: 8 | N166: 10.1875 | Q166: 5 | R166: 11.2
C167: h | D167: 26 | E167: 350.9615385 | F167: 190 | G167: 510 | H167: 358 | I167: 11 | J167: 395.4545455 | M167: 7 | N167: 396.4285714 | Q167: 4 | R167: 237.5
B168: Pulvérisateur enjambeur automoteur | C168: acre | D168: 79 | E168: 9.962025316 | F168: 8.675 | G168: 11.075 | H168: 9.653061224 | I168: 18 | J168: 9.722222222 | K168: 14 | L168: 9.964285714 | M168: 29 | N168: 9.905172414 | O168: 4 | P168: 10.625 | Q168: 9 | R168: 10.30555556 | S168: 5 | T168: 10
C169: h | D169: 35 | E169: 461.5357143 | F169: 300 | G169: 636.75 | H169: 511 | I169: 6 | J169: 374.1666667 | K169: 5 | L169: 588 | M169: 15 | N169: 483 | Q169: 6 | R169: 438.9583333
B170: Avec GPS | C170: ac.
C171: hr.
B172: Humectation par cordes | C172: ac. | F172: 12 | G172: 12
C173: hr. | F173: 300 | G173: 300
B174: MÉCANIQUE
B175: Sarclage des interlignes | C175: acre | D175: 6 | E175: 18 | H175: 14 | M175: 3 | N175: 15.33333333
C176: h | D176: 4 | E176: 156.25 | H176: 109 | M176: 3 | N176: 168.3333333
B177: Houe rotative | C177: acre | D177: 6 | E177: 11.16666667 | I177: 5 | J177: 11.4
C178: h
B179: ÉPANDAGE D'ENGRAIS
B180: Épandage d'engrais sec | C180: acre | D180: 40 | E180: 9.65 | F180: 8 | G180: 11 | H180: 9 | I180: 10 | J180: 9.5 | K180: 7 | L180: 10.07142857 | M180: 13 | N180: 9.423076923 | O180: 4 | P180: 10.25 | Q180: 5 | R180: 9.2
C181: h | D181: 24 | E181: 376.7916667 | F181: 250 | G181: 513.75 | H181: 282 | I181: 7 | J181: 379.7142857 | K181: 4 | L181: 496.25 | M181: 6 | N181: 335 | Q181: 4 | R181: 290
B182: Avec GPS | C182: acre | I182: 0 | J182: 0 | K182: 0 | L182: 0 | M182: 0 | N182: 0 | O182: 0 | P182: 0 | Q182: 0 | R182: 0 | S182: 0 | T182: 0
C183: h | I183: 2 | J183: 25 | K183: 0 | M183: 3 | N183: 15.33333333 | O183: 0 | Q183: 1 | R183: 12 | S183: 0
B184: Location d'un semoir à engrais sec en vrac | C184: acre | D184: 3 | E184: 9.833333333 | H184: 12.4
C185: h | D185: 4 | E185: 124 | H185: 15.33333333 | M185: 3 | N185: 15.33333333
B186: Épandage d'engrais sec - bandes latérales | C186: ac. | F186: 10.375 | G186: 12.125 | H186: 14.33333333
B187: Épandage d'engrais anhydre | C187: acre | D187: 5 | E187: 19.8 | H187: 15 | I187: 4 | J187: 21.25
C188: h | D188: 3 | E188: 246.6666667 | H188: 212
B189: Épandage d'engr. liquide - sol | C189: acre | D189: 11 | E189: 13.72727273 | F189: 9.75 | G189: 16.75 | H189: 10.07692308 | I189: 4 | J189: 12.375 | K189: 5 | L189: 14.5
C190: h | D190: 6 | E190: 532.5 | H190: 376.3333333
B191: Épandage d'engrais liquide - bandes latérales | C191: acre | D191: 22 | E191: 13.65909091 | F191: 10 | G191: 18 | H191: 13.22727273 | I191: 12 | J191: 14.29166667 | K191: 3 | L191: 13 | M191: 3 | N191: 12 | Q191: 4 | R191: 13.5
C192: h | D192: 15 | E192: 279.1333333 | F192: 132.8 | G192: 391.5 | H192: 261 | I192: 8 | J192: 255.625 | Q192: 4 | R192: 246.75
B193: Service de cartes de prescription | C193: acre | D193: 4 | E193: 2.0625
C194: h | F194: 0 | G194: 0
B195: Cartographie de la topographie | C195: acre | F195: 5 | G195: 5
C196: h
B197: Conductivité électrique | C197: acre | F197: 20 | G197: 20
C198: h
B199: Cartographie à haute résolution | C199: acre | F199: 20 | G199: 20
C200: h
B201: Autre | C201: acre | F201: 10.35 | G201: 30.65
C202: h
B203: échantillonnage du sol à des sites précis | C203: acre | D203: 4 | E203: 11.625
C204: h | F204: 112.5 | G204: 112.5
B205: INSECTICIDE/FONGICIDE
B206: tôt l'application | C206: acre | D206: 7 | E206: 10.46428571 | H206: 10 | M206: 5 | N206: 10
C207: h | D207: 5 | E207: 358.75 | H207: 426 | M207: 3 | N207: 366.6666667
B208: retard l'application | C208: acre | D208: 11 | E208: 11.20454545 | F208: 10 | G208: 14 | H208: 11 | K208: 3 | L208: 13.33333333 | M208: 6 | N208: 10
C209: h | D209: 8 | E209: 497.96875 | F209: 302.5 | G209: 742.5 | M209: 4 | N209: 462.5
B216: Enquête sur les tarifs perçus en 2018 pour les travaux agricoles à forfait
B217: TÂCHE | E217: Provincial | I217: Région 1 | K217: Région 2 | M217: Région 3 | O217: Région 4 | Q217: Région 5 | S217: Région 6
C218: UNITÉ | D218: Nbre | E218: Moy. | F218: Percentile 2018 | H218: Moy. | I218: Nbre | J218: Moy. | K218: Nbre | L218: Moy. | M218: Nbre | N218: Moy. | O218: Nbre | P218: Moy. | Q218: Nbre | R218: Moy. | S218: Nbre | T218: Moy.
E219: 2018 | F219: 15e | G219: 85e | H219: 2015 | J219: 2018 | L219: 2018 | N219: 2018 | P219: 2018 | R219: 2018 | T219: 2018
B221: MAÏS
B222: avec benne à grain | C222: acre | D222: 113 | E222: 47.92920354 | F222: 43 | G222: 54 | H222: 44 | I222: 32 | J222: 45.21875 | K222: 15 | L222: 50 | M222: 35 | N222: 47.11428571 | O222: 11 | P222: 49.09090909 | Q222: 19 | R222: 51.57894737
C223: h | D223: 73 | E223: 381.5547945 | F223: 237 | G223: 500 | H223: 375 | I223: 22 | J223: 369.6363636 | K223: 9 | L223: 354.2777778 | M223: 24 | N223: 427.375 | O223: 6 | P223: 323.5 | Q223: 11 | R223: 362.2727273
... 162 more rows
